Cogmind - Beta 16 @@@ ROGUE MODE // 2026.02.07 @ 22:12:02 Player: mephiles96 Result: Destroyed by L-31 Rogue with Katana Performance ------------- Evolutions (2) 1000 Regions Visited (4) 800 Robots Destroyed (37) 185 Value Destroyed (1066) 1066 Prototype IDs (1) 20 Alien Tech Used (0) 0 Bonus (14) 14 TOTAL SCORE: 3085 Bonus ------- Follower Combat Kills 14 Cogmind --------- Core Integrity 0/550 Matter 187/300 Energy 100/100 System Corruption 4% Temperature Warm (107) Movement Core (350) Ox6 Location -8/Storage Parts ------- > --- POWER (1) -------- (None) > --- PROPULSION (3) --- (None) > --- UTILITY (5) ------ Large Storage Unit > --- WEAPON (2) ------- (None) > --- INVENTORY (15) --- Heavy Ion Engine Medium Matter Pod (0) Trap Scanner Improved Signal Interpreter Targeting Computer ECM Suite System Shield Drone Bay (2/2) EM Shotgun Pulse Rifle Mining Laser Peak State ------------ > --- POWER ------------ Heavy Ion Engine > --- PROPULSION ------- Light Treads Light Treads Compact Wheel > --- UTILITY ---------- Large Storage Unit Improved Sensor Array Improved Signal Interpreter Hardened Light Armor Plating System Shield > --- WEAPON ----------- Pulse Rifle Pulse Rifle > --- INVENTORY -------- Light Nuclear Core Aluminum Leg Medium Matter Pod Targeting Computer Light Armor Plating System Shield EM Shotgun Beam Rifle Light Assault Rifle Heavy Assault Rifle Mini Grenade Launcher Mining Laser [Rating: 26] Favorites ----------- Power Light Nuclear Core Engine Heavy Ion Engine Power Core Light Nuclear Core Propulsion Light Treads Treads Light Treads Leg Aluminum Leg Wheel Compact Wheel Utility System Shield Device Improved Sensor Array Storage Large Storage Unit Processor Improved Signal Interpreter Hackware System Shield Protection Hardened Light Armor Plating Weapon Heavy Assault Rifle Energy Gun Pulse Rifle Ballistic Gun Heavy Assault Rifle Launcher Mini Grenade Launcher Special Weapon Mining Laser Build | -11 -10 -9 -8 -8 ------- Run | Yrd Mat Mat Mat Sto Slots Evolved 4 | . . 2 2 . Power . | . . . . . Propulsion 1 | . . . 1 . Utility 3 | . . 2 1 . Weapon . | . . . . . Parts Attached 33 | 8 1 9 8 7 Power 5 | 1 . 1 1 2 Engine 2 | 1 . . 1 . Core 3 | . . 1 . 2 Reactor . | . . . . . Propulsion 5 | 2 . . 1 2 Treads 2 | 2 . . . . Leg 1 | . . . . 1 Wheel 2 | . . . 1 1 Hover . | . . . . . Flight . | . . . . . Utility 11 | 2 . 5 2 2 Device 4 | 1 . 1 1 1 Storage 3 | 1 . 2 . . Processor 1 | . . . 1 . Hackware 1 | . . 1 . . Protection 2 | . . 1 . 1 Artifact . | . . . . . Weapon 12 | 3 1 3 4 1 Energy Gun 7 | 3 . 2 2 . Energy Cannon . | . . . . . Ballistic Gun 3 | . 1 1 1 . Ballistic Cannon . | . . . . . Launcher 1 | . . . . 1 Special Weapon 1 | . . . 1 . Impact Weapon . | . . . . . Slashing Weapon . | . . . . . Piercing Weapon . | . . . . . Special Melee Weapon . | . . . . . Unidentified Prototypes 1 | . . . 1 . Parts Lost 21 | . . 2 5 14 Power 3 | . . 1 . 2 Propulsion 5 | . . . 2 3 Utility 7 | . . 1 1 5 Weapon 6 | . . . 2 4 Highest Loss Streak 7 | . . 2 3 7 To Critical Strikes . | . . . . . Average Backups 9 | 6 8 7 10 10 Power 1 | . 1 . 1 1 Propulsion 1 | 3 3 2 1 . Utility 2 | . 2 . 3 4 Weapon 3 | . 1 3 5 4 Tool/Special . | . . . . . Unused Backups 11 | . 1 3 1 6 Power 1 | . . 1 . . Propulsion 3 | . 1 2 . . Utility 6 | . . . . 6 Weapon 1 | . . . 1 . Tool/Special . | . . . . . Average Slot Usage (%) 92 | . 100 98 96 74 Engine 4 | . 14 1 7 2 Core 5 | . . 8 1 6 Treads 15 | . 28 22 17 . Leg 1 | . . . . 4 Wheel 4 | . . . 9 5 Device 10 | . 14 12 8 10 Storage 12 | . 14 15 9 10 Processor 4 | . . . 7 9 Hackware 8 | . . 8 9 8 Protection 6 | . . 5 9 5 Energy Gun 9 | . 24 10 8 5 Ballistic Gun 7 | . 3 11 8 3 Peak Build Rating 26 | 8 8 19 26 23 Average Rating 17 | 6 7 16 23 19 On Entrance 11 | . 8 8 19 20 Avg Prop Armor Cover (%) 14 | . . . 15 7 Naked Turns . | . . . . . Heaviest Build 40 | 12 12 37 40 38 Greatest Support 40 | 40 40 40 16 16 Greatest Overweight (x) 10 | . . . 2 10 Average Overweight (x) 1 | . . . 2 3 Largest Inventory Capacity 15 | 8 8 15 15 15 Average Capacity 12 | 7 8 9 15 15 Most Carried 12 | 8 8 8 12 12 Average Carried 9 | 6 7 7 10 10 Final Capacity 15 | 8 8 15 15 15 Final Carried 12 | 8 8 8 12 11 Class Distribution -------------------- 86% | Mutant 13% | Scavenger-Mutant Dominant Class ---------------- Mutant | -10/Materials Mutant | -9/Materials Mutant | -8/Materials Mutant | -8/Storage Resources | -11 -10 -9 -8 -8 ----------- Run | Yrd Mat Mat Mat Sto Matter Collected 975 | 338 24 247 198 168 Remotely . | . . . . . Salvage Created 1185 | 146 24 273 495 247 Parts 82 | 9 4 21 30 18 Haulers Intercepted . | . . . . . Recyclers Shooed . | . . . . . Parts Field Recycled . | . . . . . Retrieved Matter . | . . . . . Parts Self-Destructed . | . . . . . Prevented . | . . . . . Parts Restored . | . . . . . Kills | -11 -10 -9 -8 -8 ------- Run | Yrd Mat Mat Mat Sto Combat Hostiles Destroyed 26 | . 2 5 9 10 Melee 1 | . . . 1 . Guns 16 | . 2 5 8 1 AOE 9 | . . . . 9 Classes Destroyed 7 | 3 1 2 . 1 Worker 3 | 1 . . 1 1 Builder 2 | . . . . 2 Tunneler 4 | 3 . 1 . . Recycler 2 | 1 . . . 1 Swarmer 6 | . 2 . . 4 Grunt 8 | . . 1 4 3 Sentry 12 | . . 4 5 3 Best Kill Streak 4 | 2 2 2 2 4 Combat Bots Only 3 | . 2 1 2 3 Max Kills in Single Turn 3 | 1 2 1 2 3 Gunslinging 1 | . 1 . . . Exploded 3 | . . . . 3 Melee 1 | . . . 1 . Uniques/NPCs Destroyed . | . . . . . Combat | -11 -10 -9 -8 -8 -------- Run | Yrd Mat Mat Mat Sto Hostile Shots Fired 209 | . 14 38 70 87 Missed 57 | . 2 14 18 23 Hits 152 | . 12 24 52 64 Melee 6 | . . . . 6 Projectile 146 | . 12 24 52 58 Critical Strikes 8 | . 1 1 2 4 Damage Taken 2449 | . 113 349 812 1175 Core 636 | . 7 59 123 447 Absorbed by Shields . | . . . . . Regen/Repaired (Parts) 17 | . . 17 . . Core Remaining (%) 94 | 100 97 85 . . Volleys Fired 108 | 15 5 20 42 26 Largest 2 | 2 2 2 2 2 Hottest 126 | 90 90 90 126 83 Shots Fired 186 | 30 10 40 74 32 Gun 157 | 30 10 40 67 10 Cannon . | . . . . . Launcher 22 | . . . . 22 Special 7 | . . . 7 . Kinetic 81 | . . 23 52 6 Thermal 66 | 30 10 7 15 4 Explosive 22 | . . . . 22 Electromagnetic 17 | . . 10 7 . Robot Hit Streak 17 | 10 7 17 11 13 Robot Miss Streak 5 | 3 1 5 1 2 Penetration Max . | . . . . . Secondary Targets 2 | . 1 . 1 . Max Gunslinging Chain 1 | . 1 . 1 . Shots Hit Robots 132 | 20 9 33 53 17 Core Hits 69 | 6 3 13 24 23 Critical Kills . | . . . . . Critical Parts Destroyed . | . . . . . Critical Strikes 5 | 3 1 . 1 . Burn 5 | 3 1 . 1 . Melee Attacks . | . . . . . Impact . | . . . . . Slashing . | . . . . . Piercing . | . . . . . Sneak Attacks . | . . . . . Combat Hostiles . | . . . . . Follow-up Attacks . | . . . . . Damage Inflicted 2463 | 261 108 360 850 884 Guns 1600 | 261 108 360 806 65 Cannons . | . . . . . Explosions 819 | . . . . 819 Melee . | . . . . . Ramming 44 | . . . 44 . Kinetic 815 | . . 207 595 13 Thermal 600 | 261 108 61 118 52 Explosive 819 | . . . . 819 Electromagnetic 185 | . . 92 93 . Impact . | . . . . . Slashing . | . . . . . Piercing . | . . . . . Highest Corruption 4 | . . . 2 4 Average Corruption 1 | . . . 1 2 Corruption Purged . | . . . . . Corruption Blocked . | . . . . . Effects 15 | . . . 3 12 Message Errors 4 | . . . 1 3 Matter Fused 3 | . . . . 3 Heat Flow Errors 2 | . . . . 2 Energy Discharges 2 | . . . . 2 Parts Rejected 1 | . . . . 1 Parts Fused 1 | . . . 1 . Data Loss (minor) 1 | . . . 1 . Data Loss (major) 1 | . . . . 1 Overload Shots . | . . . . . Overflow Damage 12 | . . . . 12 Projectiles . | . . . . . Explosions 12 | . . . . 12 Melee . | . . . . . Knockbacks . | . . . . . Impact . | . . . . . Kinetic . | . . . . . Secondary . | . . . . . Self-Inflicted Damage 141 | . . . 21 120 Shots 3 | . . . . 3 Rammed 7 | . . . 7 . Targets Rammed 7 | . . . 7 . Kicked . | . . . . . Crushed . | . . . . . Highest Temperature 300 | 222 120 135 300 276 Average Temperature 67 | 117 53 47 58 54 Received Heat Transfer 909 | . . 117 378 414 Effects 1 | 1 . . . . Energy Bleed 1 | 1 . . . . Siege Activations . | . . . . . Martial Activations . | . . . . . Shielding Activations . | . . . . . Robots Disrupted . | . . . . . Combat Hostiles . | . . . . . Robots Corrupted . | . . . . . Combat Hostiles . | . . . . . Parts Fried 2 | . . 1 1 . Impact Corruptions . | . . . . . Robots Melted . | . . . . . Combat Hostiles . | . . . . . Parts Melted 1 | . . . 1 . Heat Transferred 1892 | 916 347 185 333 111 Parts Sabotaged . | . . . . . Parts Stolen . | . . . . . Parts Stripped . | . . . . . Power Chain Reactions . | . . . . . Alert | -11 -10 -9 -8 -8 ------- Run | Yrd Mat Mat Mat Sto Maximum Alert Level 1 | . . . . 1 Low Security (%) 91 | 100 100 100 100 60 Level 1 8 | . . . . 39 Level 2 . | . . . . . Level 3 . | . . . . . Level 4 . | . . . . . Level 5 . | . . . . . High Security . | . . . . . Max Security . | . . . . . Peak Influence 277 | 10 65 35 111 277 Initial 33 | . . 18 1 33 Average 52 | 1 16 7 33 181 Influence Increases 1098 | 25 65 146 279 583 Destroy 0b10 Robot/C 560 | . 40 100 180 240 Destroy 0b10 Robot/NC 55 | 25 . 5 5 20 Destroy Leader 160 | . 10 40 50 60 Allied During Kill 11 | . . . . 11 Successful Hack 9 | . . . 9 . Disable Machine 75 | . . . 15 60 Destroy Structure 78 | . . 1 5 72 Lose Combat Pursuer 150 | . 15 . 15 120 Influence Decreases 892 | 25 20 185 206 456 Entered New Map 78 | . . 27 5 46 Time Decay 604 | 25 20 158 171 230 Lost Part 170 | . . . 30 140 Lost Ally 40 | . . . . 40 Squads Dispatched 8 | . 1 2 2 3 Investigation 1 | . . . 1 . Extermination . | . . . . . Reinforcement 4 | . 1 2 . 1 Assault 2 | . . . . 2 Garrison 1 | . . . 1 . Intercept . | . . . . . Searches Triggered . | . . . . . Construction Impeded 1 | . . . . 1 Haulers Reinforced . | . . . . . Active Scanning Responses . | . . . . . Cargo Convoy Interrupts . | . . . . . Stealth | -11 -10 -9 -8 -8 --------- Run | Yrd Mat Mat Mat Sto Distress Signals 8 | . . 6 . 2 Communications Jammed . | . . . . . Distress Signals . | . . . . . Times Spotted 52 | . 4 9 11 28 Peak Tracking Total 7 | . 3 3 3 7 Tactical Retreats 6 | . 1 . 1 4 Traps | -11 -10 -9 -8 -8 ------- Run | Yrd Mat Mat Mat Sto Traps Triggered 3 | . 1 . 1 1 Indirectly . | . . . . . Trap Hack Attempts . | . . . . . Triggered . | . . . . . Disarmed . | . . . . . Reprogrammed . | . . . . . Reused . | . . . . . Traps Extracted . | . . . . . Installed . | . . . . . Triggered . | . . . . . Machines | -11 -10 -9 -8 -8 ---------- Run | Yrd Mat Mat Mat Sto Machines Disabled 5 | . . . 1 4 Max in Single Turn 1 | . . . 1 1 Machines Repaired . | . . . . . Machines Dismantled . | . . . . . Machines Sabotaged . | . . . . . Overloaded Fab Kills . | . . . . . Hacking | -11 -10 -9 -8 -8 --------- Run | Yrd Mat Mat Mat Sto Machines Accessed 7 | . 1 4 2 . Terminals 5 | . 1 2 2 . Fabricators . | . . . . . Repair Stations 1 | . . 1 . . Recycling Units . | . . . . . Scanalyzers 1 | . . 1 . . Garrison Access . | . . . . . Total Hacks 21 | . 3 14 4 . Successful 10 | . 1 7 2 . Failed 11 | . 2 7 2 . Catastrophic 3 | . 1 1 1 . Database Lockouts . | . . . . . Manual 7 | . 3 1 3 . Terminals 12 | . 3 5 4 . Fabricators . | . . . . . Repair Stations 3 | . . 3 . . Recycling Units . | . . . . . Scanalyzers 6 | . . 6 . . Garrison Access . | . . . . . Terminal Hacks 3 | . 1 . 2 . Part Schematic 1 | . 1 . . . Robot Analysis 1 | . . . 1 . Level Access Points 1 | . . . 1 . Fabricator Hacks . | . . . . . Repair Station Hacks 2 | . . 2 . . Scan Component 1 | . . 1 . . Repair 1 | . . 1 . . Recycling Unit Hacks . | . . . . . Scanalyzer 5 | . . 5 . . Retrieve Study 5 | . . 5 . . Garrison Access Hacks . | . . . . . Unauthorized Hacks . | . . . . . Terminals . | . . . . . Fabricators . | . . . . . Repair Stations . | . . . . . Recycling Units . | . . . . . Scanalyzers . | . . . . . Garrison Access . | . . . . . Data Cores Recovered . | . . . . . Used . | . . . . . Hacking Detections 5 | . 1 3 1 . Full Trace Events 1 | . . . 1 . Feedback Events . | . . . . . Feedback Blocked . | . . . . . Robot Schematics Acquired . | . . . . . Robots Built . | . . . . . Authchips . | . . . . . Time . | . . . . . Total Robot Build Rating . | . . . . . Part Schematics Acquired 1 | . 1 . . . Parts Built . | . . . . . Authchips . | . . . . . Time . | . . . . . Total Part Build Rating . | . . . . . Part Studies Acquired 5 | . . 5 . . Parts Repaired 1 | . . 1 . . Time 26 | . . 26 . . Parts Recycled . | . . . . . Recycled Matter . | . . . . . Retrieved Matter . | . . . . . Retrieved Components . | . . . . . Parts Scanalyzed . | . . . . . Part Schematics Acquired . | . . . . . Parts Damaged . | . . . . . Bothacking | -11 -10 -9 -8 -8 ------------ Run | Yrd Mat Mat Mat Sto Used RIF Installer . | . . . . . Robots Hacked . | . . . . . Non-combat . | . . . . . Combat . | . . . . . Robot Hacks Applied . | . . . . . Relay Couplers Released . | . . . . . Fabnet Peak Effective % . | . . . . . Robots Rewired . | . . . . . Allies Hacked . | . . . . . Hacks Repelled . | . . . . . Allies | -11 -10 -9 -8 -8 -------- Run | Yrd Mat Mat Mat Sto Total Allies 2 | . . . . 2 Largest Group 2 | . . . . 2 Highest-Rated Group 62 | . . . . 62 Highest-Rated Ally 31 | . . . . 31 Total Orders . | . . . . . Ally Attacks 17 | . . . . 17 Total Damage 256 | . . . . 256 Kills 2 | . . . . 2 Allies Corrupted . | . . . . . Allies Melted . | . . . . . Intel | -11 -10 -9 -8 -8 ------- Run | Yrd Mat Mat Mat Sto Active Infowar (turns) 2047 | 114 137 720 628 448 Sensors 1021 | . . . 581 440 Terrain 767 | . . 720 47 . Seismic 514 | 114 137 123 . 140 Robot Analysis Total 1 | . . . 1 . Derelict Logs Recovered . | . . . . . Drone Launches . | . . . . . Drone Recoveries . | . . . . . Exploration | -11 -10 -9 -8 -8 ------------- Run | Yrd Mat Mat Mat Sto Turns Passed 2305 | 262 137 720 693 493 Spaces Moved 1164 | 128 74 344 378 240 Core 17 | 8 . . . 9 Treads 538 | 120 74 344 . . Legs 38 | . . . . 38 Wheels 571 | . . . 378 193 Hover . | . . . . . Flight . | . . . . . Fastest Speed 50 | 50 160 160 120 110 Average Speed 147 | 153 160 160 120 166 Slowest Speed 550 | 160 160 160 120 550 Overloaded Moves . | . . . . . Propulsion Burnouts . | . . . . . Robots Hopped . | . . . . . Potential Cave-ins . | . . . . . Cave-ins Triggered . | . . . . . Exploration Rate (%) 25 | 9 23 34 22 37 Regions Visited 4 Branch Regions 1 Pre-discovered Areas . | . . . . . Known Exits Taken 1 | . . . 1 . Unknown Exits Taken 3 | 1 1 1 . . Scrap Searched . | . . . . . Spaces Dug 3 | . . . 3 . Terrain Destroyed 94 | . . . 3 91 Melee . | . . . . . Projectile 3 | . . . 3 . AOE 91 | . . . . 91 Terrain Rammed . | . . . . . Walls Destroyed . | . . . . . Machines Disabled . | . . . . . Actions | -11 -10 -9 -8 -8 --------- Run | Yrd Mat Mat Mat Sto Total 1545 | 162 83 478 523 299 Wait 183 | . 2 91 77 13 Move 1160 | 127 73 343 377 240 Hop . | . . . . . Pick Up 31 | 10 1 8 7 5 Fast Attach 14 | 6 . 3 2 3 Attach 14 | 2 . 3 2 7 Detach 1 | 1 . . . . Swap 17 | . 1 3 8 5 Drop 10 | 1 1 7 1 . Fire 108 | 15 5 20 42 26 Melee . | . . . . . Ram 7 | . . . 7 . Kick . | . . . . . Crush . | . . . . . Escape Stasis . | . . . . . Rewire . | . . . . . Trap . | . . . . . Miscellaneous . | . . . . . Route ------- -11/Scrapyard -10/Materials -9/Materials (discovered 2 exits: *Mat / [*Min]) -8/Materials (discovered 4 exits: Fac x3 / *Sto) -8/Storage History --------- Turn | Location | Event 27 | -11/Scrapyard | Discovered new exit (range 16) 263 | -11/Scrapyard | Entered Materials 302 | -10/Materials | Build established: Mutant 362 | -10/Materials | Discovered new exit (range 16) 400 | -10/Materials | Entered another Materials area 400 | -9/Materials | Evolved 2 slots: Utility x2 758 | -9/Materials | Repaired Med. Matter Pod 1002 | -9/Materials | Discovered new exit (range 8) 1103 | -9/Materials | Discovered new exit (range 3) 1120 | -9/Materials | Entered another Materials area 1120 | -8/Materials | Evolved 2 slots: Propulsion x1, Utility x1 1756 | -8/Materials | Identified exit to Factory 1782 | -8/Materials | Discovered new exit (range 5) 1801 | -8/Materials | Garrison activated, responded to threat 1812 | -8/Materials | Identified exit to Storage 1813 | -8/Materials | Entered Storage 1885 | -8/Storage | Lost 5 parts (3n2w) 2087 | -8/Storage | Core integrity fell below 50% 2121 | -8/Storage | Lost 5 parts (1p1n2u1w) 2134 | -8/Storage | Met a pair of Derelict thieves 2299 | -8/Storage | Core integrity fell below 20% 2306 | -8/Storage | Destroyed by L-31 Rogue with Katana Last Messages --------------- 02253_ K-01 Serf cleans the Transfer Shaft. 02264_ Acquired Wheel. 02265_ K-01 Serf cleans the Transfer Shaft. 02275_ Wheel destroyed. 02285_ Lgt. Assault Rifle destroyed. 02287_ System corrupted: Heat flow error (+282). 02287_ Imp. Sensor Array destroyed. 02289_ C-45 Heavy ARC bursts open, deploying its payload. 02289_ L-31 Rogue unfolds itself. 02289_ B-36 Bruiser unfolds itself. 02289_ M-28 Smith unfolds itself. 02293_ Lgt. Nuclear Core destroyed. 02295_ Seismic Detector destroyed. 02295_ System Shield destroyed. 02295_ Pulse Rifle destroyed. 02295_ System corrupted by crushing effect (+1). 02302_ Imp. Signal Interpreter severed. 02306_ System corrupted: Heat flow error (+107). Map ----- +----------------------------------------------------+ | ?????????????????????????????????????????????????? | | ?????????????????????????????????????????????????? | | ?????????????????????????????????????????????????? | | ?????????????????????????????????????????????????? | | ?????????????????????????????????????????????????? | | ?????????????????????????????????????????????????? | | ?????????????????????????????????????????????????? | | ?????????????????????????????????????????????????? | | ?????????????????????????????????????????????????? | | ?????????????????????????????????????????????????? | | ?????????????????????????????????????????????????? | | ??????????????? ?????????????????????????????????? | | ??????????????# ######???????????????????????????? | | ??????????????# +???????????????????????????? | | ??????????????# #???????????????????????????? | | ?????????+##### ##??????????????????????????? | | ????????? ??????????????????????????? | | ????????# #??????????????????????????? | | ???????## """ ###????????????????????????? | | ???????#T "R ""#????????????????????????? | | ????????# """ T"?????????????????????????? | | ????????# !! "??????????????????????????? | | ????????# !! #??????????????????????????? | | ????????# a ! #??????????????????????????? | | #####???# == g #######????????????????????? | | #???# k = % bl@ + ""????????????????? | | #???# ##### ##########????????????????????? | | """ #???# #???# #?????????????????????????????? | | ??" #???# #???# #?????????????????????????????? | | ??" #???# #???#### #?????????????????????????????? | | ??" ##### #??????# #?????????????????????????????? | | ??" + #??????# #?????????????????????????????? | | ##### #????###/######????????????????????????? | | #####???# ###### #????????????????????????? | | ????????# / """ #????????????????????????? | | ????????# ###### """ ##??????????????"????????? | | ????????# #????# """ ####???????????? ????????? | | ????????# #????# # #?????????###+###?????? | | ????????# #????# "" # ###???????# ####### | | ##+###### ###### # #???????# | | %!=%" / # # #??????## | | =############ # ##??????# | | = % #??????????#####+#### #??????## # ##### | | ##+##?????????## # # ### ########### # ## ## | | = *##???????## = "??# # | | T#???????#T #??# ## # "" | | #" "###??????##"# #??# # !# "" | | ! #??????#! ## #??# # "" | | !!#??????#! !# ##??# ## # | | ! #??????#! !## ##???# ## # ! | +----------------------------------------------------+ Best States ------------- Heat Dissipation 31 Energy Generation 14 Energy Capacity 280 Matter Stores 400 Matter Capacity 400 Sight Range 16 Robot Scan Range 15 Terrain Scan Range 16 Terrain Scan Density 10 Armor Coverage 150 Evasion (%) 40 Recoil Reduction 2 Defensive Hacking 10 Item Schematics ----------------- Aluminum Leg | -10/Materials | Hacked Robot Schematics ------------------ None Fabricated ------------ Nothing Repaired ---------- Med. Matter Pod | 32% | -9/Materials Studied --------- Com. Wheel | -9/Materials | Hacked Lgt. Treads | -9/Materials | Hacked Aluminum Leg | -9/Materials | Hacked EM Shotgun | -9/Materials | Hacked Mni. Grenade Launcher | -9/Materials | Hacked Alien Tech Used ----------------- None Achievements -------------- None Challenges ------------ None Game ------ Seed StormCorruptionStorm Manual? 0 Play Time 00:21:30 Cumulative 33.4 hours Start 2026.02.07 @ 21:51:51 End 2026.02.07 @ 22:12:02 Sessions 1 Manual Loads 0 Difficulty Rogue Special Mode None Game No. 39 Rogue 39 Adventurer 0 Explorer 0 Win Type - Total 0 Types 0/0/0/0/0/0/0/0/0/0 Lore% 14 Gallery% 31 Achievement% 22 Wizard Run 0 Options --------- Layout 2 ASCII 0 Keyboard 0 Movement Numpad Keybinds 1 Fullscreen 1 Font 24/Smallcaps Map View 50x44 Zoom Use 0% Tactical HUD 1 Map Filters NONE Filters NONE Steam 1 RUN: f026ee9e-ded2-4be7-aec6-eb1bc7529d29